bitfinex/quotes_BTCUSD_20241128
["timestamp","ask_amount","ask_price","bid_price","bid_amount"]
[1732776430014,0.104456,95734.0,95733.0,0.0017222]
[1732776430432,0.00552062,95734.0,95733.0,0.0017222]
[1732776430909,0.00552062,95734.0,95733.0,0.1061792]
[1732776431123,0.02139946,95738.0,95734.0,0.208912]
[1732776431370,0.02139946,95738.0,95737.0,0.179852]
[1732776431582,0.0008611,95748.0,95737.0,0.07724858]
[1732776431795,0.0008611,95748.0,95739.0,0.208901]
[1732776432051,0.00551698,95747.0,95745.0,0.104443]
[1732776432272,0.00551698,95747.0,95741.0,0.208896]
[1732776432273,0.02111948,95746.0,95741.0,0.208896]
[1732776432498,0.00551698,95747.0,95742.0,0.208894]
[1732776432683,0.00551692,95745.0,95742.0,0.00184852]
[1732776432951,0.0008611,95748.0,95743.0,0.104445]
[1732776433376,0.00551751,95747.0,95740.0,0.00184854]
[1732776433598,0.104444,95745.0,95740.0,0.00184854]
[1732776433807,0.00551745,95746.0,95735.0,0.03576546]
[1732776434039,0.00551745,95746.0,95742.0,0.002]
[1732776434241,0.0008611,95748.0,95742.0,0.002]
[1732776434510,0.104445,95744.0,95742.0,0.002]
[1732776434732,0.104446,95743.0,95742.0,0.002]
[1732776434972,0.10997193,95743.0,95742.0,0.002]
[1732776435199,0.10997193,95743.0,95735.0,0.104454]
[1732776435200,0.00552593,95743.0,95735.0,0.005]
[1732776435411,0.104452,95737.0,95733.0,0.0017222]
[1732776435628,0.076,95743.0,95733.0,0.0017222]
[1732776435629,0.208896,95741.0,95733.0,0.0017222]
[1732776435865,0.313344,95741.0,95740.0,0.003]
[1732776436127,0.44880181,95741.0,95740.0,0.003]
[1732776436332,0.61635381,95741.0,95733.0,0.0017222]
[1732776436561,0.376456,95734.0,95733.0,0.0017222]
[1732776436776,0.51191381,95734.0,95733.0,0.0067222]
[1732776438385,0.51291381,95734.0,95733.0,0.0067222]
[1732776438624,0.51191381,95734.0,95733.0,0.0017222]
[1732776438853,0.51191381,95734.0,95733.0,0.0027222]
[1732776439109,0.51263759,95734.0,95733.0,0.0027222]
[1732776439342,0.51263759,95734.0,95733.0,0.0017222]
[1732776439564,0.5338857,95734.0,95733.0,0.0017222]
[1732776439780,0.5368857,95734.0,95733.0,0.0017222]
[1732776440242,0.5338857,95734.0,95733.0,0.0017222]
[1732776440697,0.5348857,95734.0,95733.0,0.0017222]
[1732776440921,0.5278857,95734.0,95733.0,0.0017222]
[1732776441349,0.5288857,95734.0,95733.0,0.0017222]
[1732776441606,0.5268857,95734.0,95733.0,0.0017222]
[1732776441823,0.5268857,95734.0,95721.0,0.0017224]
[1732776441824,0.01,95722.0,95721.0,0.0017224]
[1732776442048,0.49611421,95722.0,95721.0,0.0017224]
[1732776442285,0.62240637,95722.0,95721.0,0.0017224]
[1732776442779,0.52872681,95722.0,95721.0,0.0017224]
[1732776444847,0.54216783,95722.0,95721.0,0.0017224]
[1732776445501,0.54516783,95722.0,95721.0,0.0017224]
[1732776448202,0.53516783,95722.0,95721.0,0.0017224]
[1732776448444,0.21131421,95722.0,95721.0,0.0017224]
[1732776449125,0.20831421,95722.0,95721.0,0.0017224]
[1732776449552,0.21555063,95722.0,95721.0,0.0017224]
[1732776450207,0.21255063,95722.0,95721.0,0.0017224]
[1732776451183,0.21155063,95722.0,95721.0,0.0017224]
[1732776451606,0.21855063,95722.0,95721.0,0.0017224]
[1732776452090,0.21255063,95722.0,95721.0,0.0017224]
[1732776452310,0.21455063,95722.0,95721.0,0.0017224]
[1732776452525,0.21655063,95722.0,95721.0,0.0017224]
[1732776452754,0.21355063,95722.0,95721.0,0.0017224]
[1732776452990,0.21155063,95722.0,95721.0,0.0017224]
[1732776453424,0.21255063,95722.0,95721.0,0.0017224]
[1732776454091,0.21455063,95722.0,95721.0,0.0017224]
[1732776454525,0.21155063,95722.0,95721.0,0.0017224]
[1732776454751,0.21455063,95722.0,95721.0,0.0017224]
[1732776455007,0.21355063,95722.0,95721.0,0.0017224]
[1732776455437,0.21555063,95722.0,95721.0,0.0017224]
[1732776455654,0.21355063,95722.0,95721.0,0.0017224]
[1732776455881,0.20755063,95722.0,95721.0,0.0017224]
[1732776456094,0.21155063,95722.0,95721.0,0.0017224]
[1732776457576,0.48915063,95722.0,95721.0,0.0017224]
[1732776457855,0.52160719,95722.0,95721.0,0.0017224]
[1732776458316,0.48915063,95722.0,95721.0,0.0017224]
[1732776459014,0.47991431,95722.0,95721.0,0.0017224]
[1732776461452,0.51238233,95722.0,95721.0,0.0017224]
[1732776461677,0.52238233,95722.0,95721.0,0.0017224]
[1732776462635,0.53238233,95722.0,95721.0,0.0017224]
[1732776470927,0.52638233,95722.0,95721.0,0.0017224]
[1732776471142,0.54074131,95722.0,95721.0,0.0017224]
[1732776471357,0.53674131,95722.0,95721.0,0.0017224]
[1732776471593,0.54574131,95722.0,95721.0,0.0017224]
[1732776478974,0.68614849,95722.0,95721.0,4e-07]
[1732776479230,0.54574131,95722.0,95721.0,4e-07]
[1732776479713,0.104511,95683.0,95682.0,0.0066824]
[1732776479920,0.20735621,95683.0,95682.0,0.0066824]
[1732776480144,0.24415488,95683.0,95682.0,0.0066824]
[1732776480361,0.21158177,95683.0,95682.0,0.0066824]
[1732776481440,0.21158177,95683.0,95682.0,0.0126824]
[1732776481668,0.02505444,95683.0,95682.0,0.0126824]
[1732776481892,0.02505444,95683.0,95679.0,0.06225268]
[1732776482375,0.104512,95682.0,95679.0,0.06225268]
[1732776482629,0.104515,95680.0,95679.0,0.06225268]
[1732776483086,0.10874273,95680.0,95679.0,0.06225268]
[1732776483972,0.10874273,95680.0,95679.0,0.06325268]
[1732776484208,0.10874273,95680.0,95679.0,0.06225268]
[1732776484426,0.10707294,95680.0,95669.0,0.047]
[1732776484686,0.21258794,95680.0,95679.0,0.001]
[1732776485383,0.21158794,95680.0,95679.0,0.004]
[1732776485673,0.24415365,95680.0,95679.0,0.004]
[1732776485907,0.104529,95667.0,95666.0,0.0017228]
[1732776486395,0.10875137,95667.0,95666.0,0.0017228]
[1732776487080,0.00422237,95667.0,95666.0,0.1062528]
[1732776487330,0.31187721,95680.0,95666.0,0.0027228]
[1732776487331,0.209049,95672.0,95666.0,0.0027228]
[1732776487564,0.104529,95667.0,95666.0,0.0027228]
[1732776487805,0.00421848,95671.0,95666.0,0.0027228]
[1732776488036,0.209043,95674.0,95666.0,0.0027228]
[1732776488037,0.104527,95669.0,95666.0,0.0027228]
[1732776488260,0.104525,95671.0,95666.0,0.0017228]
[1732776488506,0.02054074,95667.0,95666.0,0.0017228]
[1732776488969,0.02475916,95667.0,95666.0,0.0027228]
[1732776489199,0.02475916,95667.0,95666.0,0.0037228]
[1732776489665,0.02475916,95667.0,95666.0,0.0027228]
[1732776490144,0.02475916,95667.0,95666.0,0.0047228]
[1732776490357,0.02475916,95667.0,95666.0,0.0037228]
[1732776490619,0.02475916,95667.0,95666.0,0.1082528]
[1732776490864,0.00421842,95667.0,95666.0,0.38151375]
[1732776491065,0.01280952,95703.0,95675.0,0.0764]
[1732776491322,0.13540357,95702.0,95677.0,0.0764]
[1732776491547,0.13540357,95702.0,95682.0,0.104512]
[1732776491548,0.104505,95689.0,95682.0,0.104512]
[1732776491796,0.00400046,95701.0,95678.0,0.0018497]
[1732776492035,0.15101939,95710.0,95679.0,0.104515]
[1732776492036,0.104509,95685.0,95679.0,0.104515]
[1732776492259,0.104514,95681.0,95677.0,0.0773812]
[1732776492489,0.00399987,95684.0,95677.0,0.0764]
[1732776492715,0.2538646,95700.0,95678.0,0.00184971]
[1732776492716,0.313521,95687.0,95678.0,0.00184971]
[1732776492965,0.104508,95686.0,95682.0,0.002]
[1732776493230,0.10850766,95686.0,95682.0,0.002]
[1732776493444,0.00399966,95686.0,95677.0,0.0764]
[1732776493657,0.10451,95685.0,95679.0,0.104516]
[1732776493906,0.10451,95685.0,95677.0,0.0764]
[1732776493907,0.104514,95681.0,95677.0,0.0764]
[1732776494340,0.104511,95683.0,95682.0,0.003]
[1732776494551,0.208988,95699.0,95677.0,0.0764]
[1732776494768,0.104515,95680.0,95677.0,0.0784]
[1732776494981,0.104515,95680.0,95679.0,0.004]
[1732776495201,0.104515,95680.0,95679.0,0.001723]
[1732776495756,0.001,95681.0,95679.0,0.001723]
[1732776495848,0.001,95681.0,95680.0,0.104514]
[1732776496764,0.001,95681.0,95680.0,0.25276359]
[1732776496985,0.02059007,95698.0,95693.0,0.104499]
[1732776497197,0.02059007,95698.0,95694.0,0.1234]
[1732776497630,0.02059007,95698.0,95695.0,0.104498]
[1732776497868,0.02059007,95698.0,95694.0,0.1234]
[1732776498074,0.12508507,95698.0,95694.0,0.1234]
[1732776498313,0.12508507,95698.0,95694.0,0.1284]
[1732776498541,0.02159007,95698.0,95694.0,0.1284]
[1732776498749,0.02159007,95698.0,95694.0,0.1234]
[1732776499177,0.02159007,95698.0,95694.0,0.229899]
[1732776499834,0.02159007,95698.0,95694.0,0.1254]
[1732776500076,0.12608507,95698.0,95695.0,0.004]
[1732776500291,0.02059007,95698.0,95694.0,0.1254]
[1732776500523,0.12508607,95698.0,95694.0,0.1294]
[1732776500996,0.01459007,95698.0,95694.0,0.233899]
[1732776501239,0.208979,95704.0,95694.0,0.233899]
[1732776501240,0.104489,95703.0,95696.0,0.104497]
[1732776501468,0.104491,95702.0,95696.0,0.104497]
[1732776502140,0.104492,95701.0,95696.0,0.104497]
[1732776502614,0.104492,95701.0,95694.0,0.231899]
[1732776502837,0.104492,95701.0,95694.0,0.233899]
[1732776503067,0.104492,95701.0,95695.0,0.104498]
[1732776503516,0.104493,95700.0,95695.0,0.104498]
[1732776503731,0.104493,95700.0,95696.0,0.002]
[1732776503960,0.00403629,95699.0,95698.0,0.104495]
[1732776504178,0.00403629,95699.0,95694.0,0.332397]
[1732776504411,0.10449,95703.0,95695.0,0.003]
[1732776504643,0.10449,95703.0,95697.0,0.104496]
[1732776504866,0.104492,95701.0,95696.0,0.005]
[1732776505300,0.00403637,95700.0,95696.0,0.109496]
[1732776506236,0.00403637,95700.0,95699.0,0.104494]
[1732776506464,0.02081679,95709.0,95699.0,0.00184931]
[1732776506684,0.02081679,95709.0,95700.0,0.00184931]
[1732776506893,0.02081679,95709.0,95705.0,0.104487]
[1732776507802,0.02081679,95709.0,95699.0,0.208988]
[1732776508016,0.02181679,95709.0,95704.0,0.104488]
[1732776508249,0.02181679,95709.0,95705.0,0.104487]
[1732776508669,0.02367839,95709.0,95696.0,0.208994]
[1732776508883,0.02367839,95709.0,95697.0,0.00184932]
[1732776508884,0.208968,95708.0,95697.0,0.00184932]
[1732776509102,0.104492,95701.0,95697.0,0.00184932]
[1732776509344,0.208968,95708.0,95698.0,0.20899]
[1732776509582,0.00404007,95700.0,95699.0,0.00184934]
[1732776509815,0.104484,95708.0,95701.0,0.104491]
[1732776510032,0.104486,95707.0,95702.0,0.10449]
[1732776510479,0.02167839,95709.0,95699.0,0.00184934]
[1732776510703,0.104488,95705.0,95700.0,0.10634131]
[1732776510939,0.104488,95705.0,95700.0,0.104492]
[1732776511615,0.104484,95708.0,95702.0,0.10449]
[1732776512258,0.104486,95707.0,95702.0,0.10449]
[1732776512491,0.104484,95708.0,95701.0,0.208984]
[1732776512742,0.104484,95708.0,95700.0,0.001]
[1732776512968,0.104485,95707.0,95702.0,0.10449]
[1732776513193,0.02167839,95709.0,95700.0,0.00284933]
[1732776513411,0.02167839,95709.0,95701.0,0.00184931]
[1732776513622,0.001,95708.0,95703.0,0.104488]
[1732776514065,0.001,95708.0,95704.0,0.104488]
[1732776514273,0.001,95708.0,95700.0,0.21083532]
[1732776514274,0.001,95708.0,95700.0,0.00184932]
[1732776514485,0.02167839,95709.0,95702.0,0.208982]
[1732776514703,0.02167839,95709.0,95696.0,0.00184931]
[1732776514917,0.02167839,95709.0,95704.0,0.104488]
[1732776515129,0.02167839,95709.0,95703.0,0.208977]
[1732776515398,0.02167839,95709.0,95705.0,0.104487]
[1732776515834,0.02167839,95709.0,95703.0,0.104489]
[1732776515835,0.12016139,95709.0,95703.0,0.104489]
[1732776516063,0.00404029,95708.0,95703.0,0.104489]
[1732776516494,0.00404029,95708.0,95695.0,0.522492]
[1732776516719,0.01567839,95709.0,95704.0,0.001]
[1732776516933,0.01567839,95709.0,95705.0,0.104487]
[1732776517141,0.00403959,95708.0,95705.0,0.104487]
[1732776517782,0.00403959,95708.0,95703.0,0.104489]
[1732776518027,0.00403959,95708.0,95700.0,0.208986]
[1732776518239,0.00403959,95708.0,95707.0,0.104485]
[1732776519145,0.00403959,95708.0,95705.0,0.001]
[1732776519342,0.00403959,95708.0,95705.0,0.105486]
[1732776519768,0.00403959,95708.0,95707.0,0.104485]
[1732776520924,0.00403959,95708.0,95707.0,0.001]
[1732776521385,0.00403959,95708.0,95707.0,0.002]
[1732776521607,0.01567839,95709.0,95707.0,0.002]
[1732776521836,0.10852945,95708.0,95707.0,0.002]
[1732776522297,0.00404545,95708.0,95707.0,0.002]
[1732776522538,0.10939085,95708.0,95707.0,0.002]
[1732776522774,0.10939085,95708.0,95707.0,0.001]
[1732776523016,0.10939085,95708.0,95707.0,0.002]
[1732776523247,0.00490685,95708.0,95707.0,0.002]
[1732776523460,0.00490685,95708.0,95707.0,0.001]
[1732776523677,0.00490685,95708.0,95707.0,0.002]
[1732776523904,0.00490685,95708.0,95707.0,0.001]
[1732776524118,0.00490685,95708.0,95707.0,0.002]
[1732776524581,0.00490685,95708.0,95707.0,0.001]
[1732776525026,0.00490685,95708.0,95707.0,0.002]
[1732776527140,0.00490844,95708.0,95707.0,0.002]
[1732776528748,0.00490844,95708.0,95707.0,0.106485]
[1732776529211,0.00490844,95708.0,95707.0,0.002]
[1732776530964,0.00404704,95708.0,95707.0,0.002]
[1732776531854,0.01458683,95709.0,95707.0,0.002]
[1732776532078,0.00384519,95708.0,95707.0,0.002]
[1732776532941,0.00384519,95708.0,95707.0,0.001]
[1732776533416,0.00384519,95708.0,95707.0,0.002]
[1732776533862,0.00384519,95708.0,95707.0,0.001]
[1732776534104,0.00384519,95708.0,95707.0,0.002]
[1732776534316,0.10832919,95708.0,95707.0,0.002]
[1732776535523,0.10832919,95708.0,95707.0,0.0037226]
[1732776536206,0.00384519,95708.0,95707.0,0.0037226]
[1732776536637,0.10832919,95708.0,95707.0,0.0037226]
[1732776537561,0.00384519,95708.0,95707.0,0.0037226]
[1732776537981,0.10832919,95708.0,95707.0,0.0037226]
[1732776539074,0.00384519,95708.0,95707.0,0.0037226]
[1732776540370,0.10832919,95708.0,95707.0,0.0037226]
[1732776540593,0.00384519,95708.0,95707.0,0.0037226]
[1732776541042,0.10832919,95708.0,95707.0,0.0037226]
[1732776545771,0.32491236,95708.0,95707.0,0.0037226]
[1732776546008,0.21971487,95708.0,95707.0,0.0037226]
[1732776546678,0.21971487,95708.0,95707.0,0.0027226]
[1732776547113,0.22071487,95708.0,95707.0,0.0017226]
[1732776547333,0.22071487,95708.0,95707.0,0.0027226]
[1732776547559,0.21971487,95708.0,95707.0,0.0027226]
[1732776548000,0.21971487,95708.0,95707.0,0.0037226]
[1732776548948,0.21971487,95708.0,95707.0,0.003307]
[1732776549171,0.21971487,95708.0,95707.0,0.001307]
[1732776549389,0.21971487,95708.0,95707.0,0.002307]
[1732776549614,0.21971487,95708.0,95707.0,0.003307]
[1732776549837,0.21971487,95708.0,95707.0,0.002307]
[1732776550294,0.21971487,95708.0,95707.0,0.003307]
[1732776551235,0.03628568,95708.0,95707.0,0.003307]
[1732776551478,0.03628568,95708.0,95707.0,0.188892]
[1732776551479,0.00364772,95708.0,95707.0,0.188892]
[1732776551727,0.0008616,95709.0,95708.0,0.127484]
[1732776551937,0.0008616,95709.0,95708.0,0.76262236]
[1732776552191,0.0008616,95709.0,95708.0,0.76076717]
[1732776552413,0.0008616,95709.0,95708.0,0.57438553]
[1732776552890,0.0008616,95709.0,95708.0,0.80746028]
[1732776553107,0.0018616,95709.0,95708.0,0.81446028]
[1732776553329,0.0008616,95709.0,95708.0,0.76065685]
[1732776553545,0.0028616,95709.0,95708.0,0.77665685]
[1732776554037,0.0018616,95709.0,95708.0,0.76965685]
[1732776554236,0.0018616,95709.0,95708.0,0.58338553]
[1732776554474,0.0028616,95709.0,95708.0,0.59138553]
[1732776556284,0.0028616,95709.0,95708.0,0.59098721]
[1732776557235,0.0028616,95709.0,95708.0,0.73058708]
[1732776557462,0.0028616,95709.0,95708.0,0.89013901]
[1732776558374,0.0028616,95709.0,95708.0,1.12271813]
[1732776558604,0.0028616,95709.0,95708.0,0.89013901]
[1732776559523,0.0028616,95709.0,95708.0,1.11496633]
[1732776559751,0.0028616,95709.0,95708.0,0.88238721]
[1732776560709,0.0028616,95709.0,95708.0,1.06838545]
[1732776560930,0.01939513,95733.0,95728.0,0.104462]
[1732776561159,0.00432082,95732.0,95728.0,0.104462]
[1732776561380,0.01939513,95733.0,95729.0,0.104461]
[1732776561606,0.0472,95731.0,95714.0,0.09299928]
[1732776561832,0.0472,95731.0,95712.0,0.0009896]
[1732776562050,0.208923,95729.0,95712.0,0.0009896]
[1732776562270,0.104461,95729.0,95728.0,0.001]
[1732776562484,0.104461,95729.0,95728.0,0.003]
[1732776562727,0.104461,95729.0,95728.0,0.001]
[1732776562966,0.104474,95718.0,95712.0,0.00283867]
[1732776563198,0.208923,95729.0,95714.0,0.002]
[1732776563434,0.104474,95717.0,95714.0,0.002]
[1732776563653,0.104473,95719.0,95713.0,0.104478]
[1732776563878,0.104461,95729.0,95728.0,0.004]
[1732776565040,0.20892,95730.0,95728.0,0.003]
[1732776565261,0.20730621,95729.0,95728.0,0.003]
[1732776565500,0.53836363,95729.0,95728.0,0.003]
[1732776565994,0.53836363,95729.0,95728.0,0.004]
[1732776566219,0.231984,95708.0,95707.0,0.001307]
[1732776566666,0.184784,95708.0,95707.0,0.001307]
[1732776566894,0.104484,95708.0,95707.0,0.001307]
[1732776568736,0.105484,95708.0,95707.0,0.008307]
[1732776569160,0.105484,95708.0,95707.0,0.012307]
[1732776569585,0.10983827,95708.0,95707.0,0.012307]
[1732776571454,0.13030816,95708.0,95707.0,0.012307]
[1732776571956,0.36065337,95708.0,95707.0,0.012307]
[1732776574859,0.36065337,95708.0,95707.0,0.008307]
[1732776575086,0.36065337,95708.0,95707.0,0.001307]
[1732776575573,0.35965337,95708.0,95707.0,0.001307]
[1732776575809,0.35665337,95708.0,95707.0,0.001307]
[1732776580231,0.25380816,95708.0,95707.0,0.001307]
[1732776580495,0.12630816,95708.0,95707.0,0.001307]
[1732776581195,0.12330816,95708.0,95707.0,0.001307]
[1732776581411,0.12630816,95708.0,95707.0,0.001307]
[1732776581631,0.12430816,95708.0,95707.0,0.001307]
[1732776582062,0.12430816,95708.0,95707.0,0.002307]
[1732776582489,0.12330816,95708.0,95707.0,0.002307]
[1732776582708,0.12330816,95708.0,95707.0,0.001307]
[1732776583841,0.12330816,95708.0,95707.0,0.002307]
[1732776584291,0.12330816,95708.0,95707.0,0.003307]
[1732776586158,0.22615337,95708.0,95707.0,0.003307]
[1732776586389,0.35455337,95708.0,95707.0,0.003307]
[1732776586615,0.50455337,95708.0,95707.0,0.003307]
[1732776586840,0.53708099,95708.0,95707.0,0.003307]
[1732776587328,0.53708099,95708.0,95707.0,0.001307]
[1732776587548,0.53808099,95708.0,95707.0,0.001307]
[1732776587776,0.54008099,95708.0,95707.0,0.001307]
[1732776588000,0.53908099,95708.0,95707.0,0.001307]
[1732776588214,0.54608099,95708.0,95707.0,0.001307]
[1732776588669,0.53908099,95708.0,95707.0,0.001307]
[1732776588917,0.54408099,95708.0,95707.0,0.001307]
[1732776589747,0.54208099,95708.0,95707.0,0.001307]
[1732776589973,0.54408099,95708.0,95707.0,0.001307]
[1732776590794,0.53808099,95708.0,95707.0,0.001307]
[1732776594257,0.53894229,95708.0,95707.0,0.001307]
[1732776598255,0.53394229,95708.0,95707.0,0.001307]
[1732776598498,0.54294229,95708.0,95707.0,0.002307]
[1732776598764,0.53394229,95708.0,95707.0,0.001307]
[1732776598984,0.53194229,95708.0,95707.0,0.002307]
[1732776599210,0.54794229,95708.0,95707.0,0.003307]
[1732776599665,0.54094229,95708.0,95707.0,0.002307]
[1732776600133,0.54794229,95708.0,95707.0,0.003307]
[1732776600345,0.53894229,95708.0,95707.0,0.002307]
[1732776600587,0.53194229,95708.0,95707.0,0.001307]
[1732776600829,0.54094229,95708.0,95707.0,0.003307]
[1732776601057,0.54794229,95708.0,95707.0,0.002307]
[1732776601321,0.55694229,95708.0,95707.0,0.003307]
[1732776601552,0.53894229,95708.0,95707.0,0.002307]
[1732776601993,0.54794229,95708.0,95707.0,0.003307]
[1732776602213,0.54094229,95708.0,95707.0,0.002307]
[1732776602439,0.54794229,95708.0,95707.0,0.003307]
[1732776602875,0.54794229,95708.0,95707.0,0.002307]
[1732776603092,0.54094229,95708.0,95707.0,0.002307]
[1732776603314,0.54794229,95708.0,95707.0,0.003307]
[1732776605426,0.26954229,95708.0,95707.0,0.003307]
[1732776605865,0.26354229,95708.0,95707.0,0.003307]
[1732776606304,0.25654229,95708.0,95707.0,0.002307]
[1732776606756,0.25254229,95708.0,95707.0,0.001307]
[1732776607025,0.06321308,95708.0,95707.0,0.105792]
[1732776607243,0.01421557,95708.0,95707.0,0.155492]
[1732776607489,0.01421557,95708.0,95707.0,0.154492]
[1732776607490,0.00721557,95708.0,95707.0,0.154492]
[1732776607752,0.0118613,95708.0,95707.0,0.1563146]
[1732776607967,0.0118613,95708.0,95707.0,0.154492]
[1732776608184,0.0118613,95708.0,95707.0,0.050007]
[1732776608397,0.01515489,95708.0,95707.0,0.052007]
[1732776608623,0.00615489,95708.0,95707.0,0.050007]
[1732776608852,0.00415489,95708.0,95707.0,0.154492]
[1732776609151,0.00415489,95708.0,95707.0,0.050007]
[1732776609375,0.0008613,95708.0,95707.0,0.050007]
[1732776609595,0.0008613,95708.0,95707.0,0.25419961]
[1732776609804,0.0008613,95708.0,95707.0,0.254492]
[1732776610015,0.0018613,95708.0,95707.0,0.260492]
[1732776610229,0.0018613,95708.0,95707.0,0.254492]
[1732776610438,0.0018613,95708.0,95707.0,0.253492]
[1732776610644,0.0018613,95708.0,95707.0,0.257492]
[1732776610873,0.0008613,95708.0,95707.0,0.254492]
[1732776611317,0.0008613,95708.0,95707.0,0.260492]
[1732776611318,0.0018613,95708.0,95707.0,0.260492]
[1732776611520,0.0018613,95708.0,95707.0,0.254492]
[1732776611955,0.0028613,95708.0,95707.0,0.260492]
[1732776612180,0.0028613,95708.0,95707.0,0.259492]
[1732776612605,0.0028613,95708.0,95707.0,0.261492]
[1732776613050,0.02127478,95723.0,95722.0,0.229169]
[1732776613271,0.208906,95737.0,95723.0,0.208936]
[1732776613505,0.22974069,95737.0,95724.0,0.10593586]
[1732776613726,0.00391862,95732.0,95725.0,0.104465]
[1732776613988,0.104461,95730.0,95725.0,0.00147115]
[1732776614209,0.104468,95724.0,95722.0,0.1247]
[1732776614421,0.104459,95731.0,95724.0,0.104466]
[1732776614631,0.10446,95730.0,95724.0,0.104466]
[1732776615279,0.0008611,95733.0,95732.0,0.104458]
[1732776615516,0.0008611,95733.0,95726.0,0.208929]
[1732776615742,0.0008611,95733.0,95731.0,0.104458]
[1732776616183,0.0008611,95733.0,95728.0,0.208925]
[1732776616393,0.0008611,95733.0,95732.0,0.104458]
[1732776616631,0.0008611,95733.0,95722.0,0.1247]
[1732776616891,0.0008611,95733.0,95732.0,0.104458]
[1732776617568,0.0008611,95733.0,95731.0,0.001]
[1732776617798,0.0008611,95733.0,95731.0,0.105458]
[1732776618012,0.0008611,95733.0,95731.0,0.001]
[1732776618693,0.1053181,95733.0,95732.0,0.004]
[1732776620021,0.104458,95732.0,95731.0,0.001]
[1732776620236,0.104458,95732.0,95731.0,0.005]
[1732776620499,0.0008611,95733.0,95716.0,0.20895]
[1732776620760,0.104463,95728.0,95721.0,0.104469]
[1732776620985,0.20292,95731.0,95706.0,0.208973]
[1732776621205,0.104464,95727.0,95720.0,0.104471]
[1732776621879,0.104464,95727.0,95712.0,0.0496]
[1732776622115,0.0008611,95733.0,95714.0,0.22268]
[1732776622116,0.208925,95728.0,95714.0,0.22268]
[1732776622318,0.0008611,95733.0,95716.0,0.00143641]
[1732776622535,0.104466,95725.0,95718.0,0.104472]
[1732776622973,0.104466,95725.0,95721.0,0.001]
[1732776623193,0.104468,95724.0,95721.0,0.001]
[1732776623419,0.104469,95722.0,95721.0,0.001]
[1732776624523,0.104467,95724.0,95718.0,0.001]
[1732776624787,0.10447,95721.0,95718.0,0.001]
[1732776625001,0.10447,95721.0,95712.0,0.208958]
[1732776625215,0.20893,95726.0,95715.0,0.104476]
[1732776625443,0.20893,95726.0,95721.0,0.001]
[1732776625673,0.104469,95722.0,95721.0,0.001]
[1732776625886,0.20893,95726.0,95715.0,0.104476]
[1732776626143,0.41784,95730.0,95712.0,0.106479]
[1732776626369,0.10284521,95731.0,95721.0,0.002]
[1732776626595,0.10284521,95731.0,95714.0,0.208954]
[1732776626596,0.12535979,95722.0,95714.0,0.208954]
[1732776626817,0.10447,95721.0,95716.0,0.104475]
[1732776627031,0.12535979,95722.0,95721.0,0.005]
[1732776627254,0.12535979,95722.0,95721.0,0.002]
[1732776627470,0.02089079,95722.0,95721.0,0.002]
[1732776627697,0.12535979,95722.0,95721.0,0.002]
[1732776627912,0.02089079,95722.0,95721.0,0.002]
[1732776628165,0.12535979,95722.0,95721.0,0.002]
[1732776628383,0.12535979,95722.0,95721.0,0.004]
[1732776628596,0.12535979,95722.0,95721.0,0.002]
[1732776629481,0.12931219,95722.0,95721.0,0.002]
[1732776630357,0.12931219,95722.0,95721.0,0.005]
[1732776630582,0.12931219,95722.0,95721.0,0.002]
[1732776630804,0.12931219,95722.0,95721.0,0.003]
[1732776631072,0.2321574,95722.0,95721.0,0.003]
[1732776631307,0.104481,95711.0,95710.0,0.0009838]
[1732776631783,0.10835628,95711.0,95710.0,0.0009838]
[1732776632026,0.104482,95710.0,95709.0,0.0017226]
[1732776632261,0.10833999,95710.0,95709.0,0.0017226]
[1732776635838,0.10233999,95710.0,95709.0,0.0017226]
[1732776639467,0.00385799,95710.0,95709.0,0.0017226]
[1732776639930,0.104482,95710.0,95709.0,0.0017226]
[1732776640157,0.10833535,95710.0,95709.0,0.0017226]
[1732776642590,0.00385335,95710.0,95709.0,0.0017226]
[1732776642837,0.15098016,95720.0,95709.0,0.1062056]
[1732776642838,0.208951,95717.0,95709.0,0.1062056]
[1732776643078,0.00385377,95716.0,95715.0,0.313427]
[1732776643532,0.0008611,95731.0,95715.0,0.313427]
[1732776643533,0.0008611,95731.0,95715.0,0.208951]
[1732776643758,0.0008611,95731.0,95712.0,0.0804]
[1732776643759,0.12536079,95722.0,95712.0,0.0804]
[1732776643982,0.02089079,95722.0,95712.0,0.20896]
[1732776644231,0.104471,95720.0,95715.0,0.104476]
[1732776644442,0.00385966,95719.0,95716.0,0.104475]
[1732776644656,0.12535979,95722.0,95716.0,0.104475]
[1732776644881,0.0038597,95718.0,95716.0,0.104475]
[1732776645125,0.12535979,95722.0,95715.0,0.104475]
[1732776645395,0.0038597,95717.0,95715.0,0.104475]
[1732776645590,0.02089079,95722.0,95717.0,0.104474]
[1732776646063,0.02089079,95722.0,95716.0,0.006]
[1732776646275,0.02089079,95722.0,95716.0,0.002]
[1732776646276,0.104474,95717.0,95716.0,0.002]
[1732776646737,0.20731921,95717.0,95716.0,0.002]
[1732776646966,0.20731921,95717.0,95711.0,0.10448]
[1732776647180,0.20731921,95717.0,95707.0,0.001307]
[1732776647181,0.10284521,95717.0,95707.0,0.210277]
[1732776647409,0.208951,95716.0,95707.0,0.001307]
[1732776647664,0.10284521,95717.0,95707.0,0.001307]
[1732776647665,0.104482,95710.0,95707.0,0.001307]
[1732776648763,0.104482,95710.0,95709.0,0.0027226]
[1732776649020,0.104482,95710.0,95709.0,0.0037226]
[1732776649662,0.10284521,95717.0,95711.0,0.10448]
[1732776650086,0.10284521,95717.0,95709.0,0.0037226]
[1732776650296,0.104476,95716.0,95709.0,0.1082046]
[1732776650562,0.104476,95716.0,95709.0,0.1072046]
[1732776650772,0.098476,95716.0,95709.0,0.1072046]
[1732776650979,0.104476,95715.0,95709.0,0.1072046]
[1732776651195,0.104476,95715.0,95709.0,0.1062046]
[1732776651424,0.10384521,95717.0,95709.0,0.0017226]
[1732776651662,0.20931921,95717.0,95711.0,0.10448]
[1732776651899,0.209951,95716.0,95709.0,0.0017226]
[1732776652125,0.10448,95713.0,95709.0,0.0017226]
[1732776652340,0.104478,95714.0,95709.0,0.0017226]
[1732776653892,0.104478,95714.0,95707.0,0.0075136]
[1732776654111,0.104478,95714.0,95706.0,0.104485]